Department Family,Entity,Date ,Expense Type,Expense Area,Supplier,Transaction Number,AP Amount
Department of Health,East London NHS Foundation Trust,05/10/2016,Rent,Estates,CHAMBERLAIN GROUP (THE),20462754,"47,500.00"
Department of Health,East London NHS Foundation Trust,05/10/2016,Drugs supplies,Clinical ,JANSSEN CILAG LTD,20443062,"44,416.89"
Department of Health,East London NHS Foundation Trust,05/10/2016,Drugs supplies,Clinical ,JANSSEN CILAG LTD,20443063,"51,570.22"
Department of Health,East London NHS Foundation Trust,05/10/2016,Welfare Rights Services,Towe Hamlets Directorate,MIND IN TOWER HAMLETS & NEWHAM,20462761,"26,500.00"
Department of Health,East London NHS Foundation Trust,07/10/2016,Electricity,Estates,BRITISH GAS BUSINESS,20480756,"33,899.06"
Department of Health,East London NHS Foundation Trust,07/10/2016,Rent,Estates,RENEW COUNSELLING LTD,20462832,"38,500.00"
Department of Health,East London NHS Foundation Trust,07/10/2016,Rent,Estates,RENEW COUNSELLING LTD,20462832,"5,216.65"
Department of Health,East London NHS Foundation Trust,07/10/2016,Transport costs,Corporate Directorate,GREEN TOMATO CARS LTD,20480875,"21,866.51"
Department of Health,East London NHS Foundation Trust,07/10/2016,Building works,Estates,FOREST GATE CONSTRUCTION CO LTD,20483791,"34,024.00"
Department of Health,East London NHS Foundation Trust,12/10/2016,Ward furniture,Bedfordshire Directorate,PINEAPPLE CONTRACTS,18554019,"59,942.49"
Department of Health,East London NHS Foundation Trust,12/10/2016,Rehabilitation Costs,City and Hackney Directorate,CORE ARTS LTD,19395023,"32,000.00"
Department of Health,East London NHS Foundation Trust,12/10/2016,Rehabilitation Costs,City and Hackney Directorate,CORE ARTS LTD,19395036,"32,000.00"
Department of Health,East London NHS Foundation Trust,14/10/2016,Soft FM cleaning Contract,Estates,G4S FACILITIES MANAGEMENT (UK) LTD,20462867,"52,887.25"
Department of Health,East London NHS Foundation Trust,14/10/2016,Soft FM cleaning Contract,Estates,G4S FACILITIES MANAGEMENT (UK) LTD,20462871,"83,101.88"
Department of Health,East London NHS Foundation Trust,14/10/2016,Soft FM cleaning Contract,Estates,G4S FACILITIES MANAGEMENT (UK) LTD,20462872,"213,788.06"
Department of Health,East London NHS Foundation Trust,14/10/2016,Electronic Monitoring costs,Forensic Directorate,BUDDI LTD,20491660,"108,000.00"
Department of Health,East London NHS Foundation Trust,19/10/2016,Computer Hardware Purch,ICT Team,HORNBILL SERVICE MANAGEMENT LTD,20599780,"34,015.68"
Department of Health,East London NHS Foundation Trust,19/10/2016,Computer Software/License,ICT Team,CITY & HACKNEY MIND,20462877,"161,453.00"
Department of Health,East London NHS Foundation Trust,19/10/2016,Creche Expenses,Corporate Directorate,CHILDCARE VOUCHERS LTD,20566330,"37,799.27"
Department of Health,East London NHS Foundation Trust,21/10/2016,Rent,Estates,COMMUNITY HEALTH PARTNERSHIPS LTD,20648380,"25,521.16"
Department of Health,East London NHS Foundation Trust,21/10/2016,Rent,Estates,COMMUNITY HEALTH PARTNERSHIPS LTD,20648380,"1,470,671.66"
Department of Health,East London NHS Foundation Trust,21/10/2016,Rent,Estates,COMMUNITY HEALTH PARTNERSHIPS LTD,20648380,"222,455.29"
Department of Health,East London NHS Foundation Trust,21/10/2016,Rent,Estates,COMMUNITY HEALTH PARTNERSHIPS LTD,20648380,"7,356.72"
Department of Health,East London NHS Foundation Trust,21/10/2016,Rent,Estates,COMMUNITY HEALTH PARTNERSHIPS LTD,20648380,"251,871.30"
Department of Health,East London NHS Foundation Trust,21/10/2016,Rent,Estates,COMMUNITY HEALTH PARTNERSHIPS LTD,20648380,"12,383.81"
Department of Health,East London NHS Foundation Trust,21/10/2016,Rent,Estates,COMMUNITY HEALTH PARTNERSHIPS LTD,20648380,"68,856.50"
Department of Health,East London NHS Foundation Trust,21/10/2016,Rent,Estates,COMMUNITY HEALTH PARTNERSHIPS LTD,20648380,"116,170.76"
Department of Health,East London NHS Foundation Trust,21/10/2016,Rent,Estates,COMMUNITY HEALTH PARTNERSHIPS LTD,20648380,"8,124.10"
Department of Health,East London NHS Foundation Trust,25/10/2016,Computer Hardware Purch,ICT Team,SERVELEC HEALTHCARE LTD,20664264,"29,748.00"
Department of Health,East London NHS Foundation Trust,25/10/2016,Legal / Prof Fees,,HEMPSONS SOLICITORS,20684897,"8,625.25"
Department of Health,East London NHS Foundation Trust,25/10/2016,Legal / Prof Fees,,HEMPSONS SOLICITORS,20684897,663.00
Department of Health,East London NHS Foundation Trust,25/10/2016,Legal / Prof Fees,Forensic Directorate,HEMPSONS SOLICITORS,20684897,"6,075.00"
Department of Health,East London NHS Foundation Trust,25/10/2016,Legal / Prof Fees,Human Resources,HEMPSONS SOLICITORS,20684897,768.00
Department of Health,East London NHS Foundation Trust,25/10/2016,Legal / Prof Fees,,HEMPSONS SOLICITORS,20684897,465.00
Department of Health,East London NHS Foundation Trust,25/10/2016,Legal / Prof Fees,,HEMPSONS SOLICITORS,20684897,256.00
Department of Health,East London NHS Foundation Trust,25/10/2016,Legal / Prof Fees,,HEMPSONS SOLICITORS,20684897,"6,555.20"
Department of Health,East London NHS Foundation Trust,25/10/2016,Legal / Prof Fees,Tower Hamlets ,HEMPSONS SOLICITORS,20684897,51.00
Department of Health,East London NHS Foundation Trust,25/10/2016,C&H PICU OVERSPILL,City and Hackney Directorate,CYGNET HEALTHCARE LTD,20664224,"43,373.00"
Department of Health,East London NHS Foundation Trust,26/10/2016,Drugs supplies,Clinical ,JANSSEN CILAG LTD,20689094,"31,312.38"
Department of Health,East London NHS Foundation Trust,26/10/2016,Drugs supplies,Clinical ,JANSSEN CILAG LTD,20689095,"54,680.29"
Department of Health,East London NHS Foundation Trust,28/10/2016,Photocopying,Estates,XEROX (UK) LTD,20524102,"71,389.51"
Department of Health,East London NHS Foundation Trust,28/10/2016,Unitary Charge,Estates,GH NEWHAM LTD,20716095,"454,471.50"
